[Event "Icelandic Championship 2024"]
[Site "Mosfellsbaer"]
[Date "2024.04.18"]
[Round "3.1"]
[White "Stefansson, Vignir Vatnar"]
[Black "Steingrimsson, Hedinn"]
[Result "1-0"]
[ECO "E11"]
[WhiteElo "2459"]
[BlackElo "2502"]
[Annotator "TA"]
[PlyCount "49"]
[EventDate "2024.04.16"]
[EventType "tourn"]
[EventCountry "ISL"]
[SourceTitle "playchess.com"]
[Source "ChessBase"]
[SourceQuality "1"]
[TimeControl "40/5400+30:1800+30"]

{[%evp 11,49,6,0,0,0,-10,0,0,-4,0,-3,-23,17,25,69,64,85,104,102,82,112,114,189,154,192,115,119,94,258,199,187,104,393,396,391,400,485,486,1267,1256]} 1. d4 {[%emt 0:00:30]} d5 {[%emt 0:06:37]} 2. c4 {[%emt 0:01:40]} e6 {[%emt 0:00:16]} 3. Nf3 {[%emt 0:00:06]} Nf6 {[%emt 0:02:13]} 4. g3 {[%emt 0:00:16]} Bb4+ {[%emt 0:00:09]} 5. Bd2 {[%emt 0:00:47]} Be7 {[%emt 0:00:51]} 6. Bg2 {[%emt 0:00:44]} c6 {[%emt 0:03:52]} 7. Na3 {[%emt 0:01:26]} Ne4 {[%emt 0:03:26]} 8. Be3 {[%emt 0:07:00]} Nd7 {[%emt 0:15:28]} 9. O-O {[%emt 0:07:06] The position is equal.} O-O {[%emt 0:10:25]} 10. Rc1 {[%emt 0:01:26]} Qa5 {[%emt 0:07:55]} 11. Qb3 {[%emt 0:28:28]} Bxa3 {[%emt 0:01:28]} 12. bxa3 {[%emt 0:02:05]} Nb6 {[%emt 0:19:12]} 13. Ne5 {[%emt 0:09:08]} Qa6 {[%emt 0:09:12]} 14. c5 {[%emt 0:01:54] Threatens to win with f3.} Nd7 {[%emt 0:00:34]} 15. Nd3 {[%emt 0:00:44] White is more active.} b6 {[%emt 0:01:42]} 16. Nb4 $36 {[%emt 0:08:09][%csl LRa6,LRc6][%mdl 2048] White is really pushing.} Qxe2 {[%emt 0:00:13]} (16... Qb7 $16) 17. Nxc6 {[%emt 0:07:24] Ne7+ is the strong threat.} Kh8 {[%emt 0:02:04]} 18. Ne7 {[%emt 0:05:49]} (18. Rfe1 $18 Qh5 19. f3) 18... bxc5 $16 {[%emt 0:02:21]} 19. dxc5 {[%emt 0:00:41][%cal Bd4c5,Bc5c6][%mdl 32]} Rb8 $2 {[%emt 0:00:23]} (19... Ba6 $16) 20. Qa4 {[%emt 0:02:03]} Qa6 {[%emt 0:00:22] [#]} 21. Qd4 {[%emt 0:01:30]} (21. Qxa6 $1 $18 Bxa6 22. c6 (22. Rfd1 Nef6 $18)) 21... Nef6 $2 {[%emt 0:03:37][%mdl 8192]} (21... Nexc5 $16 22. Rxc5 Nxc5 23. Qxc5 Bd7) 22. c6 $18 {[%emt 0:01:05]} Nb6 {[%emt 0:02:34]} 23. Qf4 {[%emt 0:00:37] Black is weak on the dark squares} Ra8 {[%emt 0:01:24]} 24. Bd4 {[%emt 0:00:05] A strong pair of Bishops.} Qa4 {[%emt 0:00:54] [#]} (24... Ne8 $142 25. Rfe1 f6) 25. Qxf6 $3 {[%emt 0:00:25][%mdl 512] Weighted Error Value: White=0.20 (precise) /Black=0.53.  Loses game:     	---       	Black=2      Mistake:       	White=2     	Black=2      Inaccurate:     	---       	Black=3      OK:         	White=6     	Black=4      Best:        	White=2     	Black=1      Brilliant:      	White=1     	---} 1-0

[Event "Icelandic Championship 2024"]
[Site "Mosfellsbaer"]
[Date "2024.04.18"]
[Round "3.2"]
[White "Birkisson, Bardur Orn"]
[Black "Kjartansson, Gudmundur"]
[Result "1-0"]
[ECO "C26"]
[WhiteElo "2169"]
[BlackElo "2480"]
[Annotator "TA"]
[PlyCount "139"]
[EventDate "2024.04.16"]
[EventType "tourn"]
[EventCountry "ISL"]
[SourceTitle "playchess.com"]
[Source "ChessBase"]
[SourceQuality "1"]
[TimeControl "40/5400+30:1800+30"]

{[%evp 20,139,0,-14,33,30,37,36,26,25,28,20,34,34,45,36,44,41,40,48,33,45,32,63,84,80,89,89,88,74,77,68,106,81,162,146,146,21,23,26,54,51,175,175,187,187,199,180,188,194,167,203,202,183,233,248,437,437,395,436,457,452,331,455,455,455,455,455,450,442,470,470,473,473,564,473,1352,1152,1632,419,2064,1992,1674,1162,2809,1756,2106,892,3630,2637,11762,4614,12820,12793,12797,9090,5744,6023,29947,29951,29952,29952,29955,29957,29964,29967,29967,29967,29965,29967,29966,29967,29972,29973,29988,29989,29989,29988,29988,29989,29989,29990]} 1. e4 {[%emt 0:00:04]} e5 {[%emt 0:00:30]} 2. Nf3 {[%emt 0:00:13]} Nc6 {[%emt 0:00:03]} 3. Nc3 {[%emt 0:00:34]} Nf6 {[%emt 0:00:35]} 4. g3 {[%emt 0:00:19]} Bc5 {[%emt 0:04:44]} 5. Bg2 {[%emt 0:00:22]} d6 {[%emt 0:00:54]} 6. d3 {[%emt 0:00:22]} O-O {[%emt 0:12:55] 6...a5 is setting a new trend.} 7. Na4 {[%emt 0:01:15] was the old line (7.0-0).} a5 {[%emt 0:05:33] C26: Vienna Game: 2...Nf6, sidelines .} 8. Nxc5 {[%emt 0:02:25]} dxc5 {[%emt 0:00:04]} 9. Be3 $146 {[%emt 0:21:44]} ({Predecessor:} 9. a4 c4 10. O-O cxd3 11. Qxd3 Qe7 12. Qa3 Qxa3 13. Rxa3 Rd8 14. Re1 Ne8 15. Be3 {½-½ Dahm,W (2079)-Baumann,W (1936) W-ch WS/H/731 email 2019}) 9... b6 {[%emt 0:01:12]} 10. a4 {[%emt 0:02:29]} Qd6 {[%emt 0:15:02]} 11. b3 {[%emt 0:10:06]} Bg4 {[%emt 0:10:57]} (11... Ng4 $11) 12. h3 $14 {[%emt 0:03:37]} Bxf3 {[%emt 0:00:06]} 13. Bxf3 {[%emt 0:00:59]} Rad8 {[%emt 0:04:06]} 14. O-O {[%emt 0:03:37]} Nd4 {[%emt 0:01:05]} 15. Bg2 {[%emt 0:00:46]} Nd7 {[%emt 0:02:29]} 16. c3 {[%emt 0:12:03]} Nc6 {[%emt 0:02:41]} 17. Qc2 {[%emt 0:01:27]} Rfe8 {[%emt 0:01:45]} 18. Rad1 {[%emt 0:00:53]} Nf8 {[%emt 0:00:43]} 19. f4 {[%emt 0:03:20]} exf4 {[%emt 0:04:53]} 20. gxf4 {[%emt 0:15:19]} f5 {[%emt 0:01:52]} 21. e5 {[%emt 0:01:17]} Qd7 {[%emt 0:00:19]} 22. d4 {[%emt 0:05:48]} cxd4 {[%emt 0:00:08]} 23. Bxd4 {[%emt 0:00:12]} (23. cxd4 $6 Nb4 24. Qc4+ Nd5 $11) 23... Qe6 {[%emt 0:02:47]} 24. Bxc6 {[%emt 0:03:16]} Qxc6 {[%emt 0:00:02]} 25. Qxf5 {[%emt 0:00:07]} Qg6+ {[%emt 0:00:18]} 26. Qxg6 {[%emt 0:01:53]} hxg6 {[%emt 0:00:02]} (26... Nxg6 $16 {might work better.} 27. Be3 Rf8) 27. h4 $18 {[%emt 0:03:00]} Kf7 {[%emt 0:00:58]} 28. c4 {[%emt 0:05:46]} (28. Kf2 $1 $16) 28... Ne6 $11 {[%emt 0:03:52]} 29. Be3 {[%emt 0:00:07]} Rh8 {[%emt 0:00:49]} 30. Rxd8 {[%emt 0:01:25]} Rxd8 {[%emt 0:00:05]} (30... Nxd8 $14 31. Bf2 (31. Rd1 Ne6 $14) 31... Ke6) 31. Kf2 $1 $18 {[%emt 0:00:10]} Rd3 {[%emt 0:05:16]} 32. Rb1 {[%emt 0:00:06]} Rc3 {[%emt 0:01:45]} 33. Rb2 {[%emt 0:01:11]} Nc5 {[%emt 0:00:58]} 34. Bxc5 {[%emt 0:00:12]} bxc5 {[%emt 0:00:01]} 35. Rd2 {[%emt 0:00:40]} Ke6 {[%emt 0:05:35]} 36. Rd5 {[%emt 0:00:05]} Rxb3 {[%emt 0:00:35]} (36... Kf5 $142 37. Rxc5 Kxf4) 37. Rxc5 $18 {[%emt 0:00:09]} Kf5 $2 {[%emt 0:01:39]} (37... Rh3 38. Rc6+ (38. Rxc7 Rxh4 39. Kg3 g5 $16) 38... Kf5) 38. Rxc7 $18 {[%emt 0:00:43]} Kxf4 {[%emt 0:00:36]} 39. e6 {[%emt 0:00:33]} (39. Rxg7 Rb2+ 40. Ke1 Rb6 $16) 39... Rf3+ {[%emt 0:00:59]} 40. Kg2 {[%emt 0:00:21]} Rg3+ {[%emt 0:00:07]} 41. Kh2 {[%emt 0:01:55]} Re3 {[%emt 0:01:52]} 42. Rf7+ {[%emt 0:07:29]} (42. Rxg7 Rxe6 43. Kg2 Rc6 $11) 42... Ke5 {[%emt 0:10:55]} 43. e7 {[%emt 0:06:17]} ({Worse is} 43. Rxg7 Kf6 44. Rc7 (44. Ra7 Re4 $14) 44... Kxe6 $11) 43... Kd6 {[%emt 0:06:56]} 44. Rxg7 {[%emt 0:02:50]} Kd7 {[%emt 0:04:17]} 45. Rxg6 {[%emt 0:01:25]} Kxe7 {[%emt 0:00:39]} 46. Rg4 {[%emt 0:01:05]} Kf6 {[%emt 0:04:12]} 47. h5 {[%emt 0:03:39]} Kf5 {[%emt 0:01:11]} (47... Re2+ $142 48. Kg3 Re5) 48. Rh4 $18 {[%emt 0:02:37]} Kg5 {[%emt 0:01:29]} 49. Rh3 {[%emt 0:00:12]} Re2+ {[%emt 0:01:31]} 50. Kg3 {[%emt 0:00:18]} Kh6 {[%emt 0:01:24]} 51. Kf3 {[%emt 0:01:19]} Rc2 {[%emt 0:04:53]} 52. Rh4 {[%emt 0:00:22]} Rc3+ {[%emt 0:00:08]} 53. Ke2 {[%emt 0:00:18]} Ra3 {[%emt 0:00:03]} 54. Kd2 $1 {[%emt 0:02:10]} ({Not} 54. c5 Rc3 $14) 54... Rxa4 {[%emt 0:00:27]} 55. Kc3 {[%emt 0:00:35]} Ra3+ {[%emt 0:04:31]} 56. Kb2 {[%emt 0:00:15]} Ra4 {[%emt 0:01:27] [#]} 57. Kb3 $1 {[%emt 0:00:06]} Rb4+ {[%emt 0:00:36]} 58. Kc3 {[%emt 0:00:09]} Rb1 {[%emt 0:00:21]} 59. Rh2 {[%emt 0:01:27]} a4 {[%emt 0:00:42]} 60. c5 {[%emt 0:02:18]} a3 {[%emt 0:02:13] [#]} 61. Ra2 $1 {[%emt 0:01:03]} Kxh5 {[%emt 0:01:22]} 62. Rxa3 {[%emt 0:00:06]} Kg6 {[%emt 0:00:15]} 63. Kd4 {[%emt 0:00:19]} Kf6 {[%emt 0:00:50]} 64. Re3 {[%emt 0:00:34]} Rd1+ {[%emt 0:00:10]} 65. Kc4 {[%emt 0:00:12]} Rd7 {[%emt 0:00:42]} 66. c6 {[%emt 0:01:13]} Re7 {[%emt 0:00:04]} 67. Rxe7 {[%emt 0:00:10]} Kxe7 {[%emt 0:00:03]} 68. Kc5 {[%emt 0:00:06]} Ke8 {[%emt 0:00:09]} 69. Kb6 {[%emt 0:00:10]} Kd8 {[%emt 0:00:02]} 70. Kb7 {[%emt 0:00:06]} 1-0

[Event "Icelandic Championship 2024"]
[Site "Mosfellsbaer"]
[Date "2024.04.18"]
[Round "3.3"]
[White "Ptacnikova, Lenka"]
[Black "Domalchuk-Jonasson, Aleksandr"]
[Result "0-1"]
[ECO "A25"]
[WhiteElo "2127"]
[BlackElo "2368"]
[Annotator "TA"]
[PlyCount "58"]
[EventDate "2024.04.16"]
[EventType "tourn"]
[EventCountry "ISL"]
[SourceTitle "playchess.com"]
[Source "ChessBase"]
[SourceQuality "1"]
[TimeControl "40/5400+30:1800+30"]

{[%evp 16,58,17,6,14,0,-8,-77,-55,-71,17,-41,-49,-54,-38,-127,-141,-149,-157,-428,-403,-449,-429,-506,-500,-496,-377,-369,-364,-440,-469,-470,-470,-437,-470,-469,-470,-498,-495,-515,-529,-552,-553,-546,-546]} 1. c4 {[%emt 0:00:01]} e5 {[%emt 0:00:13]} 2. g3 {[%emt 0:00:15]} Nc6 {[%emt 0:00:14]} 3. Bg2 {[%emt 0:00:17]} f5 {[%emt 0:00:12]} 4. Nc3 {[%emt 0:01:57]} Nf6 {[%emt 0:00:12]} 5. d3 {[%emt 0:02:00]} Bb4 {[%emt 0:00:14]} 6. Bd2 {[%emt 0:00:17]} O-O {[%emt 0:01:31]} 7. a3 {[%emt 0:02:00]} Bxc3 {[%emt 0:00:11]} 8. Bxc3 {[%emt 0:00:12]} d6 {[%emt 0:00:20]} 9. Nf3 {[%emt 0:02:15]} Qe8 {[%emt 0:00:40]} 10. Qc2 {[%emt 0:12:35]} Bd7 {[%emt 0:09:39]} 11. O-O-O {[%emt 0:07:21]} (11. b4 $11) 11... a5 {[%emt 0:02:13] Black is better.} 12. e3 {[%emt 0:11:10]} a4 {[%emt 0:08:56]} (12... Rb8 $17) 13. d4 {[%emt 0:00:43]} (13. Nd2 $11) 13... e4 $15 {[%emt 0:00:45]} 14. Nd2 {[%emt 0:00:25]} b5 {[%emt 0:01:46]} 15. cxb5 {[%emt 0:00:23]} (15. f3 $15) 15... Ne7 $36 {[%emt 0:00:44][%mdl 2048] Black is on the roll.} ({Much less strong is} 15... Na7 16. d5 $15) 16. b6 {[%emt 0:01:10]} cxb6 {[%emt 0:04:52]} 17. Nc4 $2 {[%emt 0:00:38] [#] This costs White the game.} (17. f3 $17 {was necessary.}) 17... Ned5 $19 {[%emt 0:01:43]} 18. Kb1 {[%emt 0:07:07]} Qe6 {[%emt 0:13:49] ...Rfc8 is the strong threat.} 19. Rc1 {[%emt 0:06:07] White is weak on the light squares} Rfc8 {[%emt 0:02:54]} 20. Nd2 {[%emt 0:00:07]} Ng4 {[%emt 0:11:36]} 21. Nxe4 {[%emt 0:10:08]} fxe4 {[%emt 0:01:03]} 22. Bxe4 {[%emt 0:00:09]} Ngf6 {[%emt 0:02:18] Black is clearly winning.} 23. Bd3 {[%emt 0:03:18]} Nxc3+ {[%emt 0:02:48]} 24. bxc3 {[%emt 0:00:09]} Bc6 {[%emt 0:00:40]} 25. Rhd1 {[%emt 0:00:55]} Bf3 {[%emt 0:01:06]} 26. Re1 {[%emt 0:02:20]} Be4 {[%emt 0:02:08]} 27. Bxe4 {[%emt 0:01:30]} Nxe4 {[%emt 0:00:16]} 28. Qb2 {[%emt 0:00:22]} Qc4 {[%emt 0:01:24]} 29. Ka1 {[%emt 0:00:36]} Ra5 {[%emt 0:01:15] Weighted Error Value: White=0.38/Black=0.15 (very precise) .  Loses game:     	White=1     	---        Mistake:       	White=3     	Black=1      OK:         	White=5     	Black=11     Best:        	White=1     	Black=1} 0-1

[Event "Icelandic Championship 2024"]
[Site "Mosfellsbaer"]
[Date "2024.04.18"]
[Round "3.4"]
[White "Ragnarsson, Dagur"]
[Black "Gretarsson, Helgi Ass"]
[Result "1/2-1/2"]
[ECO "A15"]
[WhiteElo "2333"]
[BlackElo "2468"]
[Annotator "TA"]
[PlyCount "61"]
[EventDate "2024.04.16"]
[EventType "tourn"]
[EventCountry "ISL"]
[SourceTitle "playchess.com"]
[Source "ChessBase"]
[SourceQuality "1"]
[TimeControl "40/5400+30:1800+30"]

{[%evp 9,61,14,12,14,12,0,22,29,10,14,17,15,19,23,23,29,20,27,28,29,26,6,14,22,16,20,25,0,0,5,0,7,0,0,1,0,15,14,15,10,4,0,0,0,0,0,0,0,0,0,0,0,0,0]} 1. Nf3 {[%emt 0:00:04]} Nf6 {[%emt 0:01:39]} 2. g3 {[%emt 0:00:14]} b6 {[%emt 0:08:18]} 3. Bg2 {[%emt 0:02:14]} Bb7 {[%emt 0:00:05]} 4. O-O {[%emt 0:00:19]} g6 {[%emt 0:00:06]} 5. c4 {[%emt 0:00:23]} Bg7 {[%emt 0:00:04]} 6. Nc3 {[%emt 0:00:06]} O-O {[%emt 0:00:07]} 7. Re1 {[%emt 0:01:25]} Ne4 {[%emt 0:05:33]} 8. Nxe4 {[%emt 0:02:25]} Bxe4 {[%emt 0:00:01]} 9. d3 {[%emt 0:00:14]} Bb7 {[%emt 0:00:03]} 10. e4 {[%emt 0:05:39]} c5 {[%emt 0:28:40]} 11. d4 {[%emt 0:01:18]} cxd4 {[%emt 0:01:35]} 12. Nxd4 {[%emt 0:00:07]} Qc8 {[%emt 0:02:46]} 13. b3 {[%emt 0:11:33]} Nc6 {[%emt 0:08:55]} 14. Bb2 {[%emt 0:00:49]} d6 {[%emt 0:00:35]} 15. Re2 {[%emt 0:14:54]} Nxd4 {[%emt 0:07:20]} 16. Bxd4 {[%emt 0:00:16]} Bxd4 {[%emt 0:00:02]} 17. Qxd4 {[%emt 0:00:08]} Qc5 {[%emt 0:00:08]} 18. Qxc5 {[%emt 0:08:19]} dxc5 {[%emt 0:00:01] The position is equal.} 19. Rd1 {[%emt 0:01:02]} Rad8 {[%emt 0:02:33] Prevents Rd7.} 20. Red2 {[%emt 0:00:14]} Rxd2 {[%emt 0:00:06]} 21. Rxd2 $11 {[%emt 0:00:04][%mdl 4096] Endgame. KRB-KRB} Bc8 {[%emt 0:00:07] Wards off Rd7} 22. h4 {[%emt 0:02:41]} Be6 {[%emt 0:01:04]} 23. f4 {[%emt 0:03:46]} Kg7 {[%emt 0:13:43]} 24. Kf2 {[%emt 0:05:02]} Rc8 {[%emt 0:06:58]} 25. Ke3 {[%emt 0:01:24]} Rc7 {[%emt 0:00:19]} 26. Bf3 {[%emt 0:01:58]} Rd7 {[%emt 0:04:39]} 27. Rxd7 {[%emt 0:06:45]} Bxd7 {[%emt 0:00:01]} 28. g4 {[%emt 0:00:12]} h6 {[%emt 0:00:23]} 29. g5 {[%emt 0:00:13]} hxg5 {[%emt 0:00:24]} 30. hxg5 {[%emt 0:00:38]} Kf8 {[%emt 0:00:17]} 31. e5 {[%emt 0:01:36] An uneventful encounter.   Weighted Error Value: White=0.04 (flawless) /Black=0.02 (flawless) .  OK:         	White=8     	Black=16} 1/2-1/2

[Event "Icelandic Championship 2024"]
[Site "Mosfellsbaer"]
[Date "2024.04.18"]
[Round "3.5"]
[White "Gretarsson, Hjorvar Steinn"]
[Black "Stefansson, Hannes"]
[Result "1/2-1/2"]
[ECO "D02"]
[WhiteElo "2518"]
[BlackElo "2493"]
[Annotator "TA"]
[PlyCount "46"]
[EventDate "2024.04.16"]
[EventType "tourn"]
[EventCountry "ISL"]
[SourceTitle "playchess.com"]
[Source "ChessBase"]
[SourceQuality "1"]
[TimeControl "40/5400+30:1800+30"]

{[%evp 10,46,0,0,20,16,8,-1,0,0,0,-8,-10,-9,-18,-21,-14,-18,0,0,0,-63,-70,-77,-42,-65,-48,-78,-17,-30,0,0,12,-26,0,0,7,-4,0]} 1. Nf3 {[%emt 0:01:33]} d5 {[%emt 0:02:02]} 2. d4 {[%emt 0:00:04]} Nf6 {[%emt 0:00:41]} 3. Bf4 {[%emt 0:00:04]} e6 {[%emt 0:05:48]} 4. e3 {[%emt 0:00:05]} Bd6 {[%emt 0:00:37]} 5. Bd3 {[%emt 0:00:06]} Bxf4 {[%emt 0:02:51]} 6. exf4 {[%emt 0:00:04]} b6 {[%emt 0:03:34]} 7. Qe2 {[%emt 0:03:59]} O-O {[%emt 0:00:57]} 8. Nbd2 {[%emt 0:00:48]} c5 {[%emt 0:02:05] [#] And now ...c4 would win.} 9. c3 {[%emt 0:00:09]} a5 {[%emt 0:06:05]} 10. h4 {[%emt 0:03:46]} Ba6 {[%emt 0:02:17]} 11. Bxa6 {[%emt 0:04:20]} Nxa6 {[%emt 0:00:36]} 12. h5 {[%emt 0:02:46]} Qc7 {[%emt 0:01:11]} 13. Qe5 {[%emt 0:07:46]} Qxe5+ {[%emt 0:07:59]} 14. dxe5 {[%emt 0:06:40]} Nd7 {[%emt 0:00:40]} 15. O-O-O {[%emt 0:08:36]} (15. h6 $11) 15... b5 $15 {[%emt 0:04:09]} 16. Kc2 $1 {[%emt 0:07:17]} b4 {[%emt 0:08:27]} 17. Nc4 {[%emt 0:03:30]} Nc7 {[%emt 0:00:39]} 18. f5 {[%emt 0:22:44]} bxc3 {[%emt 0:07:55]} (18... exf5 19. Ne3 Nb6 20. Nxf5) ({Black should play} 18... Rab8 $17) 19. bxc3 $11 {[%emt 0:00:22]} Rab8 {[%emt 0:00:49]} ({Of course not} 19... exf5 20. Ne3 $14) 20. Nd6 {[%emt 0:06:40]} Ne8 {[%emt 0:13:37]} 21. Nc4 {[%emt 0:04:09]} Nc7 {[%emt 0:01:33]} 22. Nd6 {[%emt 0:01:46]} Ne8 {[%emt 0:09:31]} 23. Nc4 {[%emt 0:01:59]} Nc7 {[%emt 0:00:02] Weighted Error Value: White=0.14 (very precise) /Black=0.16 (very precise) .  Mistake:       	White=1     	Black=1      Inaccurate:     	White=2     	Black=3      OK:         	White=5     	Black=5      Strong:       	White=1     	---} 1/2-1/2